fUSD/lending_fUSD_20240712
["ID","MTS","AMOUNT","RATE_DAILY","PERIOD"]
[331777312,1720759855045,-409.54,0.0001384,2]
[331777313,1720759855054,-500.0,0.0001384,2]
[331777314,1720759855063,-598.09,0.0001384,2]
[331777315,1720759855073,-500.0,0.0001384,2]
[331777316,1720759855082,-781.65,0.0001384,2]
[331777317,1720759855091,-500.0,0.0001384,2]
[331777318,1720759855101,-500.0,0.0001384,2]
[331777319,1720759855111,-500.0,0.0001384,2]
[331777320,1720759855120,-505.32,0.0001384,2]
[331777321,1720759855129,-500.0,0.0001384,2]
[331777322,1720759855139,-500.0,0.0001384,2]
[331777323,1720759855148,-500.0,0.0001384,2]
[331777324,1720759855157,-500.0,0.0001384,2]
[331777325,1720759855166,-500.0,0.0001384,2]
[331777326,1720759855176,-500.0,0.0001384,2]
[331777327,1720759855185,-178.15,0.0001384,2]
[331777328,1720759855194,-653.74,0.0001384,2]
[331777329,1720759855203,-194.64,0.0001384,2]
[331777330,1720759855213,-500.0,0.0001384,2]
[331777331,1720759855222,-500.0,0.0001384,2]
[331777332,1720759855231,-500.0,0.0001384,2]
[331777333,1720759855241,-271.59453216,0.0001384,2]
[331777334,1720759855250,-500.0,0.0001384,2]
[331777335,1720759855260,-635.52,0.0001384,2]
[331777336,1720759855270,-500.0,0.0001384,2]
[331777337,1720759855279,-500.0,0.0001384,2]
[331777338,1720759855289,-500.0,0.0001384,2]
[331777339,1720759855298,-500.0,0.0001384,2]
[331777340,1720759855307,-500.0,0.0001384,2]
[331777341,1720759855317,-982.18,0.0001384,2]
[331777342,1720759855327,-500.0,0.0001384,2]
[331777343,1720759855337,-500.0,0.0001384,2]
[331777344,1720759855346,-500.0,0.0001384,2]
[331777345,1720759855356,-500.0,0.0001384,2]
[331777346,1720759855365,-175.51,0.0001384,2]
[331777347,1720759855375,-500.0,0.0001384,2]
[331777348,1720759855385,-500.0,0.0001384,2]
[331777349,1720759855394,-500.0,0.0001384,2]
[331777350,1720759855404,-724.95,0.0001384,2]
[331777351,1720759855413,-763.86,0.0001384,2]
[331777352,1720759855423,-500.0,0.0001384,2]
[331777353,1720759855432,-500.0,0.0001384,2]
[331777354,1720759855443,-500.0,0.0001384,2]
[331777355,1720759855453,-500.0,0.0001384,2]
[331777356,1720759855462,-500.0,0.0001384,2]
[331777357,1720759855472,-549.52,0.0001384,2]
[331777358,1720759855482,-500.0,0.0001384,2]
[331777359,1720759855492,-500.0,0.0001384,2]
[331777360,1720759855502,-500.0,0.0001384,2]
[331777361,1720759855511,-500.0,0.0001384,2]
[331777362,1720759855521,-500.0,0.0001384,2]
[331777363,1720759855530,-1501.52,0.0001384,2]
[331777364,1720759855539,-610.55,0.0001384,2]
[331777365,1720759855549,-500.0,0.0001384,2]
[331777366,1720759855558,-500.0,0.0001384,2]
[331777367,1720759855567,-500.0,0.0001384,2]
[331777368,1720759855577,-640.82,0.0001384,2]
[331777369,1720759855587,-500.0,0.0001384,2]
[331777370,1720759855597,-500.0,0.0001384,2]
[331777371,1720759855606,-500.0,0.0001384,2]
[331777372,1720759855616,-1000.0,0.0001384,2]
[331777373,1720759855626,-500.0,0.0001384,2]
[331777374,1720759855638,-500.0,0.0001384,2]
[331777375,1720759855648,-680.06,0.0001384,2]
[331777376,1720759855658,-500.0,0.0001384,2]
[331777377,1720759855668,-500.0,0.0001384,2]
[331777378,1720759855679,-528.42,0.0001384,2]
[331777379,1720759855689,-500.0,0.0001384,2]
[331777380,1720759855698,-689.67,0.0001384,2]
[331777381,1720759855707,-500.0,0.0001384,2]
[331777382,1720759855719,-500.0,0.0001384,2]
[331777383,1720759855729,-1063.91,0.0001384,2]
[331777384,1720759855739,-500.0,0.0001384,2]
[331777385,1720759855748,-500.0,0.0001384,2]
[331777386,1720759855758,-500.0,0.0001384,2]
[331777387,1720759855768,-500.0,0.0001384,2]
[331777388,1720759855778,-500.0,0.0001384,2]
[331777389,1720759855787,-500.0,0.0001384,2]
[331777390,1720759855797,-500.0,0.0001384,2]
[331777391,1720759855807,-500.0,0.0001384,2]
[331777392,1720759855817,-650.69,0.0001384,2]
[331777393,1720759855827,-500.0,0.0001384,2]
[331777394,1720759855837,-638.52,0.0001384,2]
[331777395,1720759855847,-500.0,0.0001384,2]
[331777396,1720759855856,-500.0,0.0001384,2]
[331777397,1720759855866,-976.16,0.0001384,2]
[331777398,1720759855876,-500.0,0.0001384,2]
[331777399,1720759855886,-754.23,0.0001384,2]
[331777400,1720759855896,-500.0,0.0001384,2]
[331777401,1720759855906,-647.56,0.0001384,2]
[331777402,1720759855916,-500.0,0.0001384,2]
[331777403,1720759855926,-537.55,0.0001384,2]
[331777404,1720759855935,-500.0,0.0001384,2]
[331777405,1720759855945,-755.08,0.0001384,2]
[331777406,1720759855955,-500.0,0.0001384,2]
[331777407,1720759855964,-500.0,0.0001384,2]
[331777408,1720759855974,-500.0,0.0001384,2]
[331777409,1720759855983,-500.0,0.0001384,2]
[331777410,1720759855993,-500.0,0.0001384,2]
[331777411,1720759856002,-500.0,0.0001384,2]
[331777412,1720759856012,-500.0,0.0001384,2]
[331777413,1720759856022,-500.0,0.0001384,2]
[331777414,1720759856032,-500.0,0.0001384,2]
[331777415,1720759856041,-500.0,0.0001384,2]
[331777416,1720759856051,-548.63,0.0001384,2]
[331777417,1720759856061,-500.0,0.0001384,2]
[331777418,1720759856070,-563.53,0.0001384,2]
[331777419,1720759856080,-500.0,0.0001384,2]
[331777420,1720759856090,-724.37,0.0001384,2]
[331777421,1720759856100,-590.93,0.0001384,2]
[331777422,1720759856109,-500.0,0.0001384,2]
[331777423,1720759856118,-500.0,0.0001384,2]
[331777424,1720759856127,-576.44,0.0001384,2]
[331777425,1720759856137,-500.0,0.0001384,2]
[331777426,1720759856147,-500.0,0.0001384,2]
[331777427,1720759856157,-825.43,0.0001384,2]
[331777428,1720759856167,-575.53,0.0001384,2]
[331777429,1720759856176,-636.81197757,0.0001384,2]
[331777430,1720759856186,-500.0,0.0001384,2]
[331777431,1720759856195,-534.42,0.0001384,2]
[331777432,1720759856205,-892.36,0.0001384,2]
[331777433,1720759856214,-500.0,0.0001384,2]
[331777434,1720759856224,-525.0,0.0001384,2]
[331777435,1720759856234,-1043.24,0.0001384,2]
[331777436,1720759856244,-500.0,0.0001384,2]
[331777437,1720759856254,-500.0,0.0001384,2]
[331777438,1720759856264,-500.0,0.0001384,2]
[331777439,1720759856274,-523.37,0.0001384,2]
[331777440,1720759856284,-1341.32,0.0001384,2]
[331777441,1720759856293,-500.0,0.0001384,2]
[331777442,1720759856303,-500.0,0.0001384,2]
[331777443,1720759856313,-500.0,0.0001384,2]
[331777444,1720759856322,-613.3,0.0001384,2]
[331777445,1720759856332,-228.87491848,0.0001384,2]
[331777446,1720759856341,-500.0,0.0001384,2]
[331777447,1720759856351,-500.0,0.0001384,2]
[331777448,1720759856361,-1325.0,0.0001384,2]
[331777449,1720759856371,-500.0,0.0001384,2]
[331777450,1720759856381,-500.0,0.0001384,2]
[331777451,1720759856391,-500.0,0.0001384,2]
[331777452,1720759856401,-500.0,0.0001384,2]
[331777453,1720759856411,-500.0,0.0001384,2]
[331777454,1720759856421,-500.0,0.0001384,2]
[331777455,1720759856430,-588.96,0.0001384,2]
[331777456,1720759856441,-846.71,0.0001384,2]
[331777457,1720759856451,-760.57,0.0001384,2]
[331777458,1720759856461,-500.0,0.0001384,2]
[331777459,1720759856471,-500.0,0.0001384,2]
[331777460,1720759856481,-500.0,0.0001384,2]
[331777461,1720759856491,-500.0,0.0001384,2]
[331777462,1720759856502,-1008.86,0.0001384,2]
[331777463,1720759856513,-500.0,0.0001384,2]
[331777464,1720759856522,-500.0,0.0001384,2]
[331777465,1720759856532,-1570.66,0.0001384,2]
[331777466,1720759856542,-435.15310142,0.0001384,2]
[331777467,1720759856552,-500.0,0.0001384,2]
[331777468,1720759856562,-500.0,0.0001384,2]
[331777469,1720759856572,-500.0,0.0001384,2]
[331777470,1720759856582,-500.0,0.0001384,2]
[331777471,1720759856592,-500.0,0.0001384,2]
[331777472,1720759856602,-500.0,0.0001384,2]
[331777473,1720759856612,-500.0,0.0001384,2]
[331777474,1720759856624,-500.0,0.0001384,2]
[331777475,1720759856636,-694.18,0.0001384,2]
[331777476,1720759856646,-500.0,0.0001384,2]
[331777477,1720759856656,-500.0,0.0001384,2]
[331777478,1720759856667,-567.04,0.0001384,2]
[331777479,1720759856677,-500.0,0.0001384,2]
[331777480,1720759856687,-500.0,0.0001384,2]
[331777481,1720759856698,-500.0,0.0001384,2]
[331777482,1720759856709,-500.0,0.0001384,2]
[331777483,1720759856720,-500.0,0.0001384,2]
[331777484,1720759856730,-544.06,0.0001384,2]
[331777485,1720759856740,-500.0,0.0001384,2]
[331777486,1720759856750,-952.98,0.0001384,2]
[331777487,1720759856760,-500.0,0.0001384,2]
[331777488,1720759856770,-500.0,0.0001384,2]
[331777489,1720759856780,-1632.6,0.0001384,2]
[331777490,1720759856790,-687.38,0.0001384,2]
[331777491,1720759856801,-575.78,0.0001384,2]
[331777492,1720759856811,-500.0,0.0001384,2]
[331777493,1720759856822,-500.0,0.0001384,2]
[331777494,1720759856832,-500.0,0.0001384,2]
[331777495,1720759856842,-1194.22,0.0001384,2]
[331777496,1720759856852,-500.0,0.0001384,2]
[331777497,1720759856862,-500.0,0.0001384,2]
[331777498,1720759856872,-500.0,0.0001384,2]
[331777499,1720759856882,-500.0,0.0001384,2]
[331777500,1720759856892,-500.0,0.0001384,2]
[331777501,1720759856903,-584.44,0.0001384,2]
[331777502,1720759856913,-500.0,0.0001384,2]
[331777503,1720759856923,-500.0,0.0001384,2]
[331777504,1720759856934,-500.0,0.0001384,2]
[331777505,1720759856944,-713.59,0.0001384,2]
[331777506,1720759856954,-874.84,0.0001384,2]
[331777507,1720759856965,-500.0,0.0001384,2]
[331777508,1720759856975,-500.0,0.0001384,2]
[331777509,1720759856985,-303.29887977,0.0001384,2]
[331777510,1720759856995,-500.0,0.0001384,2]
[331777511,1720759857009,-500.0,0.0001384,2]
[331777512,1720759857019,-500.0,0.0001384,2]
[331777513,1720759857029,-500.0,0.0001384,2]
[331777514,1720759857040,-500.0,0.0001384,2]
[331777515,1720759857049,-500.0,0.0001384,2]
[331777516,1720759857060,-500.0,0.0001384,2]
[331777517,1720759857070,-500.0,0.0001384,2]
[331777518,1720759857080,-500.0,0.0001384,2]
[331777519,1720759857092,-500.0,0.0001384,2]
[331777520,1720759857102,-500.0,0.0001384,2]
[331777521,1720759857112,-500.0,0.0001384,2]
[331777522,1720759857122,-500.0,0.0001384,2]
[331777523,1720759857132,-819.39,0.0001384,2]
[331777524,1720759857143,-500.0,0.0001384,2]
[331777525,1720759857153,-500.0,0.0001384,2]
[331777526,1720759857163,-911.76,0.0001384,2]
[331777527,1720759857174,-500.0,0.0001384,2]
[331777528,1720759857184,-826.63,0.0001384,2]
[331777529,1720759857195,-500.0,0.0001384,2]
[331777530,1720759857205,-538.84,0.0001384,2]
[331777531,1720759857215,-500.0,0.0001384,2]
[331777532,1720759857225,-500.0,0.0001384,2]
[331777533,1720759857236,-500.0,0.0001384,2]
[331777534,1720759857246,-500.0,0.0001384,2]
[331777535,1720759857256,-500.0,0.0001384,2]
[331777536,1720759857267,-841.01,0.0001384,2]
[331777537,1720759857277,-500.0,0.0001384,2]
[331777538,1720759857287,-500.0,0.0001384,2]
[331777539,1720759857297,-500.0,0.0001384,2]
[331777540,1720759857307,-500.0,0.0001384,2]
[331777541,1720759857317,-500.0,0.0001384,2]
[331777542,1720759857327,-935.86,0.0001384,2]
[331777543,1720759857337,-500.0,0.0001384,2]
[331777544,1720759857347,-997.68,0.0001384,2]
[331777545,1720759857357,-775.47,0.0001384,2]
[331777546,1720759857367,-500.0,0.0001384,2]
[331777547,1720759857378,-500.0,0.0001384,2]
[331777548,1720759857388,-500.0,0.0001384,2]
[331777549,1720759857398,-500.0,0.0001384,2]
[331777550,1720759857408,-1045.08,0.0001384,2]
[331777551,1720759857418,-500.0,0.0001384,2]
[331777552,1720759857428,-500.0,0.0001384,2]
[331777553,1720759857438,-500.0,0.0001384,2]
[331777554,1720759857448,-1021.43,0.0001384,2]
[331777555,1720759857459,-500.0,0.0001384,2]
[331777556,1720759857469,-942.89,0.0001384,2]
[331777557,1720759857482,-500.0,0.0001384,2]
[331777558,1720759857492,-500.0,0.0001384,2]
[331777559,1720759857502,-500.0,0.0001384,2]
[331777560,1720759857514,-501.64,0.0001384,2]
[331777561,1720759857524,-500.0,0.0001384,2]
[331777562,1720759857536,-570.38,0.0001384,2]
[331777563,1720759857546,-500.0,0.0001384,2]
[331777564,1720759857556,-500.0,0.0001384,2]
[331777565,1720759857567,-526.08,0.0001384,2]
[331777566,1720759857577,-500.0,0.0001384,2]
[331777567,1720759857587,-500.0,0.0001384,2]
[331777568,1720759857597,-500.0,0.0001384,2]
[331777569,1720759857607,-500.0,0.0001384,2]
[331777570,1720759857618,-774.56,0.0001384,2]
[331777571,1720759857632,-500.0,0.0001384,2]
[331777572,1720759857864,-500.0,0.0001384,2]
[331777573,1720759857888,-500.0,0.0001384,2]
[331777574,1720759857898,-1214.73,0.0001384,2]
[331777575,1720759857907,-500.0,0.0001384,2]
[331777576,1720759857917,-500.0,0.0001384,2]
[331777577,1720759857926,-500.0,0.0001384,2]
[331777578,1720759857936,-957.68,0.0001384,2]
[331777579,1720759857945,-517.36,0.0001384,2]
[331777580,1720759857955,-500.0,0.0001384,2]
[331777581,1720759857965,-500.0,0.0001384,2]
[331777582,1720759857974,-500.0,0.0001384,2]
[331777583,1720759857984,-500.0,0.0001384,2]
[331777584,1720759857993,-500.0,0.0001384,2]
[331777585,1720759858003,-500.0,0.0001384,2]
[331777586,1720759858014,-500.0,0.0001384,2]
[331777587,1720759858023,-1680.2,0.0001384,2]
[331777588,1720759858032,-1197.24,0.0001384,2]
[331777589,1720759858041,-500.0,0.0001384,2]
[331777590,1720759858051,-500.0,0.0001384,2]
[331777591,1720759858060,-649.84,0.0001384,2]
[331777592,1720759858070,-500.0,0.0001384,2]
[331777593,1720759858079,-500.0,0.0001384,2]
[331777594,1720759858088,-500.0,0.0001384,2]
[331777595,1720759858098,-573.88,0.0001384,2]
[331777596,1720759858107,-500.0,0.0001384,2]
[331777597,1720759858116,-500.0,0.0001384,2]
[331777598,1720759858126,-500.0,0.0001384,2]
[331777599,1720759858135,-500.0,0.0001384,2]
[331777600,1720759858145,-500.0,0.0001384,2]
[331777601,1720759858155,-560.2,0.0001384,2]
[331777602,1720759858164,-786.8,0.0001384,2]
[331777603,1720759858174,-500.0,0.0001384,2]
[331777604,1720759858183,-216.33379126,0.0001384,2]
[331777605,1720759858193,-500.0,0.0001384,2]
[331777606,1720759858202,-500.0,0.0001384,2]
[331777607,1720759858212,-500.0,0.0001384,2]
[331777608,1720759858221,-500.0,0.0001384,2]
[331777609,1720759858230,-500.0,0.0001384,2]
[331777610,1720759858240,-500.0,0.0001384,2]
[331777611,1720759858250,-500.0,0.0001384,2]
[331777612,1720759858261,-500.0,0.0001384,2]
[331777613,1720759858270,-500.0,0.0001384,2]
[331777614,1720759858280,-500.0,0.0001384,2]
[331777615,1720759858289,-500.0,0.0001384,2]
[331777616,1720759858299,-500.0,0.0001384,2]
[331777617,1720759858308,-500.0,0.0001384,2]
[331777618,1720759858317,-500.0,0.0001384,2]
[331777619,1720759858327,-500.0,0.0001384,2]
[331777620,1720759858336,-1479.52,0.0001384,2]
[331777621,1720759858345,-500.0,0.0001384,2]
[331777622,1720759858355,-500.0,0.0001384,2]
[331777623,1720759858365,-500.0,0.0001384,2]
[331777624,1720759858375,-500.0,0.0001384,2]
[331777625,1720759858385,-500.0,0.0001384,2]
[331777626,1720759858394,-500.0,0.0001384,2]
[331777627,1720759858404,-500.0,0.0001384,2]
[331777628,1720759858413,-500.0,0.0001384,2]
[331777629,1720759858423,-500.0,0.0001384,2]
[331777630,1720759858432,-500.0,0.0001384,2]
[331777631,1720759858443,-500.0,0.0001384,2]
[331777632,1720759858453,-500.0,0.0001384,2]
[331777633,1720759858463,-1062.87,0.0001384,2]
[331777634,1720759858473,-500.0,0.0001384,2]
[331777635,1720759858483,-656.88,0.0001384,2]
[331777636,1720759858493,-622.8,0.0001384,2]
[331777637,1720759858503,-853.54,0.0001384,2]
[331777638,1720759858512,-500.0,0.0001384,2]
[331777639,1720759858522,-500.0,0.0001384,2]
[331777640,1720759858531,-500.0,0.0001384,2]
[331777641,1720759858540,-500.0,0.0001384,2]
[331777642,1720759858550,-500.0,0.0001384,2]
[331777643,1720759858559,-500.0,0.0001384,2]
[331777644,1720759858569,-500.0,0.0001384,2]
[331777645,1720759858579,-500.0,0.0001384,2]
[331777646,1720759858589,-500.0,0.0001384,2]
[331777647,1720759858598,-766.26,0.0001384,2]
[331777648,1720759858607,-500.0,0.0001384,2]
[331777649,1720759858618,-489.27665128,0.0001384,2]
[331777650,1720759858631,-500.0,0.0001384,2]
[331777651,1720759858641,-500.0,0.0001384,2]
[331777652,1720759858650,-519.07,0.0001384,2]
[331777653,1720759858659,-500.0,0.0001384,2]
[331777654,1720759858670,-617.16,0.0001384,2]
[331777655,1720759858680,-500.0,0.0001384,2]
[331777656,1720759858689,-554.07,0.0001384,2]
[331777657,1720759858699,-500.0,0.0001384,2]
[331777658,1720759858709,-500.0,0.0001384,2]
[331777659,1720759858718,-500.0,0.0001384,2]
[331777660,1720759858728,-500.0,0.0001384,2]
[331777661,1720759858738,-500.0,0.0001384,2]
[331777662,1720759858747,-500.0,0.0001384,2]
[331777663,1720759858757,-500.0,0.0001384,2]
[331777664,1720759858766,-999.23,0.0001384,2]
[331777665,1720759858776,-500.0,0.0001384,2]
[331777666,1720759858786,-500.0,0.0001384,2]
[331777667,1720759858796,-500.0,0.0001384,2]
[331777668,1720759858806,-335.51539665,0.0001384,2]
[331777669,1720759858815,-500.0,0.0001384,2]
[331777670,1720759858825,-500.0,0.0001384,2]
[331777671,1720759858834,-975.16,0.0001384,2]
[331777672,1720759858844,-500.0,0.0001384,2]
[331777673,1720759858853,-500.0,0.0001384,2]
[331777674,1720759858863,-500.0,0.0001384,2]
[331777675,1720759858872,-500.0,0.0001384,2]
[331777676,1720759858882,-500.0,0.0001384,2]
[331777677,1720759858891,-500.0,0.0001384,2]
[331777678,1720759858901,-1482.0,0.0001384,2]
[331777679,1720759858910,-500.0,0.0001384,2]
[331777680,1720759858920,-500.0,0.0001384,2]
[331777681,1720759858930,-289.34501117,0.0001384,2]
[331777682,1720759858939,-500.0,0.0001384,2]
[331777683,1720759858948,-802.67,0.0001384,2]
[331777684,1720759858960,-989.49,0.0001384,2]
[331777685,1720759858970,-500.0,0.0001384,2]
[331777686,1720759858980,-500.0,0.0001384,2]
[331777687,1720759858990,-635.82,0.0001384,2]
[331777688,1720759859000,-278.99,0.0001384,2]
[331777689,1720759859011,-500.0,0.0001384,2]
[331777690,1720759859021,-578.92,0.0001384,2]
[331777691,1720759859030,-500.0,0.0001384,2]
[331777692,1720759859040,-500.0,0.0001384,2]
[331777693,1720759859050,-500.0,0.0001384,2]
[331777694,1720759859059,-796.97,0.0001384,2]
[331777695,1720759859069,-863.09,0.0001384,2]
[331777696,1720759859079,-921.55,0.0001384,2]
[331777697,1720759859089,-612.50218469,0.0001384,2]
[331777698,1720759859098,-500.0,0.0001384,2]
[331777699,1720759859108,-500.0,0.0001384,2]
[331777700,1720759859118,-1192.23,0.0001384,2]
[331777701,1720759859128,-587.86,0.0001384,2]
[331777702,1720759859138,-500.0,0.0001384,2]
[331777703,1720759859147,-500.0,0.0001384,2]
[331777704,1720759859157,-500.0,0.0001384,2]
[331777705,1720759859166,-500.0,0.0001384,2]
[331777706,1720759859176,-500.0,0.0001384,2]
[331777707,1720759859185,-500.0,0.0001384,2]
[331777708,1720759859195,-500.0,0.0001384,2]
[331777709,1720759859204,-519.66,0.0001384,2]
[331777710,1720759859214,-500.0,0.0001384,2]
[331777711,1720759859223,-667.16,0.0001384,2]
[331777712,1720759859233,-500.0,0.0001384,2]
[331777713,1720759859243,-681.77,0.0001384,2]
[331777714,1720759859252,-500.0,0.0001384,2]
[331777715,1720759859261,-893.69,0.0001384,2]
[331777716,1720759859271,-513.56,0.0001384,2]
[331777717,1720759859280,-500.0,0.0001384,2]
[331777718,1720759859290,-500.0,0.0001384,2]
[331777719,1720759859299,-500.0,0.0001384,2]
[331777720,1720759859308,-732.61,0.0001384,2]
[331777721,1720759859318,-500.0,0.0001384,2]
[331777722,1720759859327,-587.48,0.0001384,2]
[331777723,1720759859337,-1157.1,0.0001384,2]
[331777724,1720759859346,-500.0,0.0001384,2]
[331777725,1720759859356,-500.0,0.0001384,2]
[331777726,1720759859366,-700.55,0.0001384,2]
[331777727,1720759859376,-500.0,0.0001384,2]
[331777728,1720759859385,-500.0,0.0001384,2]
[331777729,1720759859394,-500.0,0.0001384,2]
[331777730,1720759859403,-500.0,0.0001384,2]
[331777731,1720759859413,-500.0,0.0001384,2]
[331777732,1720759859422,-500.0,0.0001384,2]
[331777733,1720759859431,-500.0,0.0001384,2]
[331777734,1720759859440,-2958.42,0.0001384,2]
[331777735,1720759859450,-500.0,0.0001384,2]
[331777736,1720759859459,-500.0,0.0001384,2]
[331777737,1720759859469,-599.99,0.0001384,2]
[331777738,1720759859478,-500.0,0.0001384,2]
[331777739,1720759859488,-500.0,0.0001384,2]
[331777740,1720759859497,-559.09,0.0001384,2]
[331777741,1720759859508,-500.0,0.0001384,2]
[331777742,1720759859518,-517.1,0.0001384,2]
[331777743,1720759859527,-500.0,0.0001384,2]
[331777744,1720759859537,-500.0,0.0001384,2]
[331777745,1720759859546,-500.0,0.0001384,2]
[331777746,1720759859555,-500.0,0.0001384,2]
[331777747,1720759859565,-715.9,0.0001384,2]
[331777748,1720759859575,-500.0,0.0001384,2]
[331777749,1720759859585,-913.86,0.0001384,2]
[331777750,1720759859595,-525.8,0.0001384,2]
[331777751,1720759859604,-524.38,0.0001384,2]
[331777752,1720759859614,-500.0,0.0001384,2]
[331777753,1720759859625,-500.0,0.0001384,2]
[331777754,1720759859637,-500.0,0.0001384,2]
[331777755,1720759859647,-500.0,0.0001384,2]
[331777756,1720759859656,-765.74,0.0001384,2]
[331777757,1720759859667,-500.0,0.0001384,2]
[331777758,1720759859676,-500.0,0.0001384,2]
[331777759,1720759859686,-754.71,0.0001384,2]
[331777760,1720759859695,-500.0,0.0001384,2]
[331777761,1720759859706,-1002.75,0.0001384,2]
[331777762,1720759859715,-500.0,0.0001384,2]
[331777763,1720759859724,-500.0,0.0001384,2]
[331777764,1720759859734,-500.0,0.0001384,2]
[331777765,1720759859744,-500.0,0.0001384,2]
[331777766,1720759859754,-500.0,0.0001384,2]
[331777767,1720759859763,-500.0,0.0001384,2]
[331777768,1720759859773,-748.43,0.0001384,2]
[331777769,1720759859783,-500.0,0.0001384,2]
[331777770,1720759859792,-500.0,0.0001384,2]
[331777771,1720759859802,-1681.96,0.0001384,2]
[331777772,1720759859811,-500.0,0.0001384,2]
[331777773,1720759859821,-897.98,0.0001384,2]
[331777774,1720759859830,-500.0,0.0001384,2]
[331777775,1720759859840,-802.22,0.0001384,2]
[331777776,1720759859850,-588.64,0.0001384,2]
[331777777,1720759859860,-500.0,0.0001384,2]
[331777778,1720759859869,-1539.17,0.0001384,2]
[331777779,1720759859879,-1228.81,0.0001384,2]
[331777780,1720759859888,-500.0,0.0001384,2]
[331777781,1720759859898,-1191.03,0.0001384,2]
[331777782,1720759859907,-500.0,0.0001384,2]
[331777783,1720759859917,-1172.28,0.0001384,2]
[331777784,1720759859927,-660.96,0.0001384,2]
[331777785,1720759859937,-500.0,0.0001384,2]
[331777786,1720759859946,-500.0,0.0001384,2]
[331777787,1720759859956,-500.0,0.0001384,2]
[331777788,1720759859966,-500.0,0.0001384,2]
[331777789,1720759859975,-576.27,0.0001384,2]
[331777790,1720759859985,-500.0,0.0001384,2]
[331777791,1720759859995,-500.0,0.0001384,2]
[331777792,1720759860005,-500.0,0.0001384,2]
[331777793,1720759860014,-883.15,0.0001384,2]
[331777794,1720759860024,-500.0,0.0001384,2]
[331777795,1720759860034,-500.0,0.0001384,2]
[331777796,1720759860043,-906.26,0.0001384,2]
[331777797,1720759860053,-500.0,0.0001384,2]
[331777798,1720759860062,-500.0,0.0001384,2]
[331777799,1720759860072,-500.0,0.0001384,2]
[331777800,1720759860082,-945.64,0.0001384,2]
[331777801,1720759860093,-545.33085923,0.0001384,2]
[331777802,1720759860103,-644.93,0.0001384,2]
[331777803,1720759860113,-500.0,0.0001384,2]
[331777804,1720759860122,-937.38,0.0001384,2]
[331777805,1720759860132,-500.0,0.0001384,2]
[331777806,1720759860142,-500.0,0.0001384,2]
[331777807,1720759860152,-500.0,0.0001384,2]
[331777808,1720759860161,-500.0,0.0001384,2]
[331777809,1720759860171,-500.0,0.0001384,2]
[331777810,1720759860180,-1092.53,0.0001384,2]
[331777811,1720759860260,-500.0,0.0001384,2]